lending/lending_fUSD_20241229
["ID","MTS","AMOUNT","RATE_DAILY","PERIOD"]
[347051066,1735485036840,-1391.04,0.00011544,2]
[347051067,1735485036850,-500.0,0.00011544,2]
[347051068,1735485036859,-500.0,0.00011544,2]
[347051069,1735485036870,-444.46337073,0.00011544,2]
[347051070,1735485036880,-511.53012068,0.00011544,2]
[347051071,1735485036889,-500.0,0.00011544,2]
[347051072,1735485036899,-500.0,0.00011544,2]
[347051073,1735485036908,-1196.12,0.00011544,2]
[347051074,1735485036918,-500.0,0.00011544,2]
[347051075,1735485036927,-500.0,0.00011544,2]
[347051076,1735485036937,-2588.62,0.00011544,2]
[347051077,1735485036947,-500.0,0.00011544,2]
[347051078,1735485036956,-500.0,0.00011544,2]
[347051079,1735485036965,-500.0,0.00011544,2]
[347051080,1735485036975,-694.64,0.00011544,2]
[347051081,1735485036984,-500.0,0.00011544,2]
[347051082,1735485036993,-500.0,0.00011544,2]
[347051083,1735485037003,-2288.71,0.00011544,2]
[347051084,1735485037013,-500.0,0.00011544,2]
[347051085,1735485037023,-500.0,0.00011544,2]
[347051086,1735485037032,-500.0,0.00011544,2]
[347051087,1735485037041,-500.0,0.00011544,2]
[347051088,1735485037051,-500.0,0.00011544,2]
[347051089,1735485037060,-998.23,0.00011544,2]
[347051090,1735485037070,-500.0,0.00011544,2]
[347051091,1735485037079,-567.03,0.00011544,2]
[347051092,1735485037089,-633.32,0.00011544,2]
[347051093,1735485037099,-500.0,0.00011544,2]
[347051094,1735485037108,-814.61,0.00011544,2]
[347051095,1735485037118,-500.0,0.00011544,2]
[347051096,1735485037127,-500.0,0.00011544,2]
[347051097,1735485037137,-3064.48,0.00011544,2]
[347051098,1735485037146,-500.0,0.00011544,2]
[347051099,1735485037156,-1904.07,0.00011544,2]
[347051100,1735485037168,-1932.25,0.00011544,2]
[347051101,1735485037178,-500.0,0.00011544,2]
[347051102,1735485037188,-500.0,0.00011544,2]
[347051103,1735485037197,-500.0,0.00011544,2]
[347051104,1735485037207,-500.0,0.00011544,2]
[347051105,1735485037216,-500.0,0.00011544,2]
[347051106,1735485037225,-1194.6,0.00011544,2]
[347051107,1735485037236,-1763.61,0.00011544,2]
[347051108,1735485037245,-500.0,0.00011544,2]
[347051109,1735485037255,-15864.74,0.00011544,2]
[347051110,1735485037265,-500.0,0.00011544,2]
[347051111,1735485037274,-548.94,0.00011544,2]
[347051112,1735485037283,-500.0,0.00011544,2]
[347051113,1735485037292,-500.0,0.00011544,2]
[347051114,1735485037303,-500.0,0.00011544,2]
[347051115,1735485037312,-5104.19,0.00011544,2]
[347051116,1735485037321,-500.0,0.00011544,2]
[347051117,1735485037331,-500.0,0.00011544,2]
[347051118,1735485037340,-500.0,0.00011544,2]
[347051119,1735485037350,-500.0,0.00011544,2]
[347051120,1735485037359,-500.0,0.00011544,2]
[347051121,1735485037368,-1714.66,0.00011544,2]
[347051122,1735485037378,-500.0,0.00011544,2]
[347051123,1735485037387,-500.0,0.00011544,2]
[347051124,1735485037396,-1024.61,0.00011544,2]
[347051125,1735485037406,-501.35753974,0.00011544,2]
[347051126,1735485037415,-2305.71,0.00011544,2]
[347051127,1735485037425,-501.54528282,0.00011544,2]
[347051128,1735485037434,-4202.27,0.00011544,2]
[347051129,1735485037445,-3298.16,0.00011544,2]
[347051130,1735485037454,-564.94,0.00011544,2]
[347051131,1735485037463,-500.0,0.00011544,2]
[347051132,1735485037473,-12814.68,0.00011544,2]
[347051133,1735485037483,-500.0,0.00011544,2]
[347051134,1735485037492,-500.0,0.00011544,2]
[347051135,1735485037502,-2940.12,0.00011544,2]
[347051136,1735485037511,-500.0,0.00011544,2]
[347051137,1735485037520,-500.0,0.00011544,2]
[347051138,1735485037529,-500.0,0.00011544,2]
[347051139,1735485037539,-500.0,0.00011544,2]
[347051140,1735485037548,-500.0,0.00011544,2]
[347051141,1735485037558,-500.0,0.00011544,2]
[347051142,1735485037568,-500.0,0.00011544,2]
[347051143,1735485037577,-500.0,0.00011544,2]
[347051144,1735485037587,-500.0,0.00011544,2]
[347051145,1735485037596,-500.0,0.00011544,2]
[347051146,1735485037606,-1778.84,0.00011544,2]
[347051147,1735485037615,-3139.28,0.00011544,2]
[347051148,1735485037624,-500.0,0.00011544,2]
[347051149,1735485037634,-500.0,0.00011544,2]
[347051150,1735485037643,-1109.08,0.00011544,2]
[347051151,1735485037652,-500.0,0.00011544,2]
[347051152,1735485037662,-2662.33,0.00011544,2]
[347051153,1735485037671,-500.0,0.00011544,2]
[347051154,1735485037680,-2315.98,0.00011544,2]
[347051155,1735485037689,-500.0,0.00011544,2]
[347051156,1735485037699,-500.0,0.00011544,2]
[347051157,1735485037708,-500.0,0.00011544,2]
[347051158,1735485037717,-502.69799101,0.00011544,2]
[347051159,1735485037726,-500.0,0.00011544,2]
[347051160,1735485037735,-500.83313769,0.00011544,2]
[347051161,1735485037745,-500.0,0.00011544,2]
[347051162,1735485037754,-500.0,0.00011544,2]
[347051163,1735485037763,-2146.03,0.00011544,2]
[347051164,1735485037773,-2496.28,0.00011544,2]
[347051165,1735485037783,-502.00475857,0.00011544,2]
[347051166,1735485037797,-500.0,0.00011544,2]
[347051167,1735485037807,-500.0,0.00011544,2]
[347051168,1735485037816,-317.53424277,0.00011544,2]
[347051169,1735485037827,-668.25,0.00011544,2]
[347051170,1735485037836,-500.0,0.00011544,2]
[347051171,1735485037854,-500.0,0.00011544,2]
[347051172,1735485037866,-2029.35,0.00011544,2]
[347051173,1735485037876,-1134.67,0.00011544,2]
[347051174,1735485037886,-496.32,0.00011544,2]
[347051175,1735485037896,-493.97,0.00011545,2]
[347051176,1735485037906,-499.15,0.00011545,2]
[347051177,1735485037917,-497.42,0.00011545,2]
[347051178,1735485037927,-501.88,0.00011545,2]
[347051179,1735485037938,-500.0,0.00011545,2]
[347051180,1735485037948,-500.0,0.00011545,2]
[347051181,1735485037959,-500.0,0.00011545,2]
[347051183,1735485037969,-500.0,0.00011545,2]
[347051185,1735485037979,-500.0,0.00011545,2]
[347051186,1735485037989,-517.38815005,0.00011545,2]
[347051187,1735485037999,-500.0,0.00011545,2]
[347051188,1735485038009,-447.82692458,0.00011545,2]
[347051189,1735485038019,-500.0,0.00011545,2]
[347051190,1735485038029,-500.0,0.00011545,2]
[347051191,1735485038039,-500.0,0.00011545,2]
[347051192,1735485038049,-500.0,0.00011545,2]
[347051193,1735485038059,-500.0,0.00011545,2]
[347051194,1735485038070,-500.0,0.00011545,2]
[347051195,1735485038080,-1535.02,0.00011545,2]
[347051196,1735485038089,-500.0,0.00011545,2]
[347051197,1735485038099,-500.0,0.00011545,2]
[347051198,1735485038110,-500.0,0.00011545,2]
[347051199,1735485038119,-500.0,0.00011545,2]
[347051200,1735485038130,-500.0,0.00011545,2]
[347051201,1735485038139,-645.64,0.00011545,2]
[347051202,1735485038149,-500.0,0.00011545,2]
[347051203,1735485038160,-500.0,0.00011545,2]
[347051204,1735485038170,-500.0,0.00011545,2]
[347051205,1735485038180,-500.0,0.00011545,2]
[347051206,1735485038191,-500.0,0.00011545,2]
[347051207,1735485038201,-500.0,0.00011545,2]
[347051208,1735485038211,-500.0,0.00011545,2]
[347051209,1735485038221,-500.0,0.00011545,2]
[347051210,1735485038230,-500.0,0.00011545,2]
[347051211,1735485038240,-500.0,0.00011545,2]
[347051212,1735485038251,-1322.41,0.00011545,2]
[347051213,1735485038260,-437.68636667,0.00011545,2]
[347051214,1735485038271,-500.0,0.00011545,2]
[347051215,1735485038280,-500.0,0.00011545,2]
[347051216,1735485038290,-500.0,0.00011545,2]
[347051217,1735485038300,-586.67268049,0.00011545,2]
[347051218,1735485038310,-500.0,0.00011545,2]
[347051219,1735485038320,-667.73,0.00011545,2]
[347051220,1735485038329,-500.0,0.00011545,2]
[347051221,1735485038339,-212.68714866,0.00011545,2]
[347051222,1735485038349,-500.0,0.00011545,2]
[347051223,1735485038358,-500.0,0.00011545,2]
[347051224,1735485038368,-500.0,0.00011545,2]
[347051225,1735485038378,-500.0,0.00011545,2]
[347051226,1735485038388,-500.0,0.00011545,2]
[347051227,1735485038397,-500.0,0.00011545,2]
[347051228,1735485038407,-500.0,0.00011545,2]
[347051229,1735485038417,-1247.95,0.00011545,2]
[347051230,1735485038426,-500.0,0.00011545,2]
[347051231,1735485038436,-500.0,0.00011545,2]
[347051232,1735485038446,-500.0,0.00011545,2]
[347051233,1735485038455,-500.0,0.00011545,2]
[347051234,1735485038466,-500.0,0.00011545,2]
[347051235,1735485038477,-500.0,0.00011545,2]
[347051236,1735485038487,-500.0,0.00011545,2]
[347051237,1735485038497,-523.32,0.00011545,2]
[347051238,1735485038506,-500.0,0.00011545,2]
[347051239,1735485038516,-500.0,0.00011545,2]
[347051240,1735485038527,-500.0,0.00011545,2]
[347051241,1735485038538,-500.0,0.00011545,2]
[347051242,1735485038548,-1430.8,0.00011545,2]
[347051243,1735485038560,-972.6,0.00011545,2]
[347051244,1735485038573,-500.0,0.00011545,2]
[347051245,1735485038584,-500.0,0.00011545,2]
[347051246,1735485038594,-500.0,0.00011545,2]
[347051247,1735485038603,-500.0,0.00011545,2]
[347051248,1735485038613,-500.0,0.00011545,2]
[347051249,1735485038623,-500.0,0.00011545,2]
[347051250,1735485038633,-500.0,0.00011545,2]
[347051252,1735485038643,-500.0,0.00011545,2]
[347051254,1735485038652,-500.0,0.00011545,2]
[347051256,1735485038661,-500.0,0.00011545,2]
[347051258,1735485038671,-500.0,0.00011545,2]
[347051260,1735485038681,-500.0,0.00011545,2]
[347051262,1735485038691,-500.0,0.00011545,2]
[347051264,1735485038700,-500.0,0.00011545,2]
[347051266,1735485038710,-789.68,0.00011545,2]
[347051268,1735485038719,-500.0,0.00011545,2]
[347051270,1735485038729,-922.79,0.00011545,2]
[347051272,1735485038738,-500.0,0.00011545,2]
[347051274,1735485038748,-500.0,0.00011545,2]
[347051276,1735485038757,-500.0,0.00011545,2]
[347051278,1735485038767,-500.0,0.00011545,2]
[347051280,1735485038776,-764.51,0.00011545,2]
[347051282,1735485038787,-500.0,0.00011545,2]
[347051284,1735485038799,-500.0,0.00011545,2]
[347051286,1735485038808,-613.31,0.00011545,2]
[347051288,1735485038818,-500.0,0.00011545,2]
[347051290,1735485038829,-661.95,0.00011545,2]
[347051293,1735485038838,-500.0,0.00011545,2]
[347051296,1735485038847,-500.0,0.00011545,2]
[347051299,1735485038857,-500.0,0.00011545,2]
[347051302,1735485038868,-500.0,0.00011545,2]
[347051305,1735485038877,-500.0,0.00011545,2]
[347051308,1735485038887,-500.0,0.00011545,2]
[347051310,1735485038896,-500.0,0.00011545,2]
[347051312,1735485038906,-737.52,0.00011545,2]
[347051314,1735485038915,-500.0,0.00011545,2]
[347051316,1735485038925,-500.0,0.00011545,2]
[347051318,1735485038935,-500.0,0.00011545,2]
[347051320,1735485038945,-500.0,0.00011545,2]
[347051322,1735485038955,-500.0,0.00011545,2]
[347051324,1735485038964,-500.0,0.00011545,2]
[347051326,1735485038974,-500.0,0.00011545,2]
[347051328,1735485038983,-500.0,0.00011545,2]
[347051330,1735485038993,-500.0,0.00011545,2]
[347051332,1735485039002,-500.0,0.00011545,2]
[347051334,1735485039012,-500.0,0.00011545,2]
[347051336,1735485039022,-500.0,0.00011545,2]
[347051338,1735485039031,-500.0,0.00011545,2]
[347051340,1735485039040,-1140.28,0.00011545,2]
[347051342,1735485039049,-500.0,0.00011545,2]
[347051344,1735485039059,-500.0,0.00011545,2]
[347051346,1735485039069,-507.64,0.00011545,2]
[347051348,1735485039078,-500.0,0.00011545,2]
[347051350,1735485039088,-500.0,0.00011545,2]
[347051353,1735485039098,-500.0,0.00011545,2]
[347051355,1735485039107,-500.0,0.00011545,2]
[347051356,1735485039116,-531.87,0.00011545,2]
[347051359,1735485039126,-1001.49,0.00011545,2]
[347051361,1735485039135,-500.0,0.00011545,2]
[347051363,1735485039145,-500.0,0.00011545,2]
[347051365,1735485039154,-500.0,0.00011545,2]
[347051367,1735485039164,-1282.39,0.00011545,2]
[347051369,1735485039173,-500.0,0.00011545,2]
[347051371,1735485039182,-500.0,0.00011545,2]
[347051373,1735485039192,-500.0,0.00011545,2]
[347051375,1735485039201,-500.0,0.00011545,2]
[347051377,1735485039210,-500.0,0.00011545,2]
[347051379,1735485039219,-2501.13,0.00011545,2]
[347051381,1735485039229,-500.0,0.00011545,2]
[347051382,1735485039238,-500.0,0.00011545,2]
[347051385,1735485039248,-500.0,0.00011545,2]
[347051387,1735485039257,-670.74,0.00011545,2]
[347051389,1735485039266,-500.0,0.00011545,2]
[347051391,1735485039276,-500.0,0.00011545,2]
[347051393,1735485039285,-500.0,0.00011545,2]
[347051395,1735485039295,-500.0,0.00011545,2]
[347051397,1735485039304,-500.0,0.00011545,2]
[347051399,1735485039314,-1714.32,0.00011545,2]
[347051401,1735485039323,-500.0,0.00011545,2]
[347051403,1735485039332,-500.0,0.00011545,2]
[347051405,1735485039342,-500.0,0.00011545,2]
[347051407,1735485039351,-1131.48,0.00011545,2]
[347051409,1735485039361,-500.0,0.00011545,2]
[347051411,1735485039371,-500.0,0.00011545,2]
[347051435,1735485039594,-500.0,0.00011545,2]
[347051436,1735485039606,-500.0,0.00011545,2]
[347051437,1735485039615,-500.0,0.00011545,2]
[347051438,1735485039625,-500.0,0.00011545,2]
[347051439,1735485039634,-1631.02,0.00011545,2]
[347051440,1735485039643,-500.0,0.00011545,2]
[347051441,1735485039653,-500.0,0.00011545,2]
[347051442,1735485039662,-500.0,0.00011545,2]
[347051443,1735485039671,-500.0,0.00011545,2]
[347051444,1735485039680,-500.0,0.00011545,2]
[347051446,1735485039692,-500.0,0.00011545,2]
[347051448,1735485039701,-1185.25,0.00011545,2]
[347051450,1735485039712,-500.0,0.00011545,2]
[347051452,1735485039722,-500.0,0.00011545,2]
[347051454,1735485039732,-500.0,0.00011545,2]
[347051456,1735485039741,-505.15745986,0.00011545,2]
[347051458,1735485039751,-1612.97,0.00011545,2]
[347051460,1735485039761,-500.0,0.00011545,2]
[347051462,1735485039771,-500.0,0.00011545,2]
[347051464,1735485039781,-500.0,0.00011545,2]
[347051467,1735485039795,-500.0,0.00011545,2]
[347051469,1735485039804,-1121.02,0.00011545,2]
[347051470,1735485039813,-500.0,0.00011545,2]
[347051473,1735485039823,-543.43,0.00011545,2]
[347051474,1735485039834,-500.0,0.00011545,2]
[347051477,1735485039844,-605.85954951,0.00011545,2]
[347051479,1735485039854,-500.0,0.00011545,2]
[347051481,1735485039864,-500.0,0.00011545,2]
[347051483,1735485039874,-500.0,0.00011545,2]
[347051485,1735485039883,-2316.15,0.00011545,2]
[347051487,1735485039893,-500.0,0.00011545,2]
[347051488,1735485039902,-500.0,0.00011545,2]
[347051491,1735485039915,-500.0,0.00011545,2]
[347051493,1735485039925,-500.0,0.00011545,2]
[347051495,1735485039934,-500.0,0.00011545,2]
[347051497,1735485039945,-500.0,0.00011545,2]
[347051499,1735485039955,-1012.67,0.00011545,2]
[347051501,1735485039964,-500.0,0.00011545,2]
[347051503,1735485039974,-500.0,0.00011545,2]
[347051505,1735485039983,-500.0,0.00011545,2]
[347051507,1735485039992,-500.0,0.00011545,2]
[347051509,1735485040001,-500.0,0.00011545,2]
[347051511,1735485040011,-1221.53,0.00011545,2]
[347051513,1735485040021,-500.0,0.00011545,2]
[347051515,1735485040031,-500.0,0.00011545,2]
[347051517,1735485040040,-500.0,0.00011545,2]
[347051519,1735485040050,-500.0,0.00011545,2]
[347051521,1735485040059,-500.0,0.00011545,2]
[347051523,1735485040068,-1921.05,0.00011545,2]
[347051525,1735485040077,-500.0,0.00011545,2]
[347051527,1735485040086,-500.0,0.00011545,2]
[347051529,1735485040095,-500.0,0.00011545,2]
[347051531,1735485040107,-500.0,0.00011545,2]
[347051533,1735485040116,-500.0,0.00011545,2]
[347051535,1735485040125,-500.0,0.00011545,2]
[347051537,1735485040134,-649.28,0.00011545,2]
[347051539,1735485040143,-998.02,0.00011545,2]
[347051541,1735485040152,-1522.63,0.00011545,2]
[347051545,1735485040162,-757.18,0.00011545,2]
[347051549,1735485040171,-500.0,0.00011545,2]
[347051551,1735485040181,-500.0,0.00011545,2]
[347051553,1735485040192,-1569.03,0.00011545,2]
[347051555,1735485040201,-500.0,0.00011545,2]
[347051557,1735485040210,-2328.5,0.00011545,2]
[347051559,1735485040219,-981.69,0.00011545,2]
[347051561,1735485040229,-500.0,0.00011545,2]
[347051563,1735485040238,-1064.21,0.00011545,2]
[347051565,1735485040248,-500.0,0.00011545,2]
[347051567,1735485040257,-500.0,0.00011545,2]
[347051569,1735485040266,-500.0,0.00011545,2]
[347051571,1735485040275,-500.0,0.00011545,2]
[347051573,1735485040285,-1693.37,0.00011545,2]
[347051574,1735485040294,-500.0,0.00011545,2]
[347051577,1735485040303,-500.0,0.00011545,2]
[347051578,1735485040313,-1293.55,0.00011545,2]
[347051580,1735485040322,-873.94,0.00011545,2]
[347051583,1735485040331,-847.4,0.00011545,2]
[347051585,1735485040342,-500.0,0.00011545,2]
[347051586,1735485040351,-1021.65,0.00011545,2]
[347051588,1735485040361,-500.0,0.00011545,2]
[347051590,1735485040370,-2267.79,0.00011545,2]
[347051592,1735485040379,-500.0,0.00011545,2]
[347051594,1735485040389,-1022.3,0.00011545,2]
[347051596,1735485040398,-500.0,0.00011545,2]
[347051598,1735485040408,-500.0,0.00011545,2]
[347051601,1735485040419,-500.0,0.00011545,2]
[347051602,1735485040429,-1309.43,0.00011545,2]
[347051605,1735485040440,-500.0,0.00011545,2]
[347051607,1735485040451,-319.65774042,0.00011545,2]
[347051608,1735485040461,-500.0,0.00011545,2]
[347051611,1735485040471,-500.0,0.00011545,2]
[347051613,1735485040481,-500.0,0.00011545,2]
[347051615,1735485040492,-90.64742235,0.00011545,2]
[347051671,1735485041046,-1658.02365424,0.00011545,2]
[347051673,1735485041058,-508.52892341,0.00011545,2]
[347051675,1735485041067,-1340.61,0.00011545,2]
[347051677,1735485041076,-500.0,0.00011545,2]
[347051679,1735485041086,-439.76145004,0.00011545,2]
[347051681,1735485041095,-980.43,0.00011545,2]
[347051683,1735485041105,-500.0,0.00011545,2]
[347051686,1735485041115,-500.0,0.00011545,2]
[347051687,1735485041124,-642.56,0.00011545,2]
[347051690,1735485041134,-868.37,0.00011545,2]
[347051692,1735485041143,-500.0,0.00011545,2]
[347051694,1735485041153,-500.0,0.00011545,2]
[347051695,1735485041163,-500.0,0.00011545,2]
[347051697,1735485041172,-500.0,0.00011545,2]
[347051700,1735485041182,-1298.36,0.00011545,2]
[347051701,1735485041193,-511.7312456,0.00011545,2]
[347051702,1735485041202,-500.0,0.00011545,7]
[347051703,1735485041212,-500.0,0.00011545,2]
[347051704,1735485041221,-768.98,0.00011545,2]
[347051705,1735485041230,-500.0,0.00011545,2]
[347051706,1735485041241,-500.0,0.00011545,2]
[347051707,1735485041250,-784.04,0.00011545,2]
[347051709,1735485041260,-500.0,0.00011545,2]
[347051711,1735485041270,-1120.98,0.00011545,2]
[347051713,1735485041281,-500.87124191,0.00011545,2]
[347051714,1735485041290,-500.0,0.00011545,2]
[347051716,1735485041300,-11625.96,0.00011545,2]
[347051718,1735485041309,-500.0,0.00011545,2]
[347051720,1735485041319,-789.42,0.00011545,2]
[347051722,1735485041328,-500.0,0.00011545,2]
[347051724,1735485041337,-1151.33,0.00011545,2]
[347051727,1735485041346,-500.0,0.00011545,2]
[347051728,1735485041356,-873.97,0.00011545,2]
[347051730,1735485041366,-617.09,0.00011545,2]
[347051753,1735485041574,-1658.79,0.00011545,2]
[347051756,1735485041585,-155.40123674,0.00011545,2]
[347051759,1735485041611,-1020.81876326,0.00011545,2]
[347051761,1735485041620,-380.81675253,0.00011545,2]
[347051763,1735485041629,-547.00597955,0.00011545,2]
[347051765,1735485041639,-500.0,0.00011545,2]
[347051767,1735485041648,-500.0,0.00011545,2]
[347051769,1735485041658,-1826.69,0.00011545,2]
[347051771,1735485041667,-646.27,0.00011545,2]
[347051773,1735485041677,-460.62458843,0.00011545,2]
[347051775,1735485041686,-7165.97,0.00011545,2]
[347051777,1735485041697,-500.0,0.00011545,2]
[347051779,1735485041706,-501.83369981,0.00011545,2]
[347051781,1735485041716,-500.0,0.00011545,2]
[347051783,1735485041725,-500.0,0.00011545,2]
[347051785,1735485041734,-500.0,0.00011545,2]
[347051787,1735485041743,-500.0,0.00011545,2]
[347051789,1735485041753,-500.0,0.00011545,2]
[347051791,1735485041762,-1798.41,0.00011545,2]
[347051793,1735485041772,-500.0,0.00011545,2]
[347051795,1735485041781,-500.0,0.00011545,2]
[347051797,1735485041795,-1874.68,0.00011545,2]
[347051799,1735485041806,-563.94,0.00011545,2]
[347051801,1735485041816,-500.0,0.00011545,2]
[347051803,1735485041826,-500.0,0.00011545,2]
[347051805,1735485041838,-500.0,0.00011545,2]
[347051807,1735485041847,-1331.6,0.00011545,2]
[347051809,1735485041856,-500.0,0.00011545,2]
[347051811,1735485041866,-1872.33,0.00011545,2]
[347051814,1735485041876,-4046.38,0.00011545,2]
[347051815,1735485041885,-509.1,0.00011545,2]
[347051817,1735485041895,-1128.98,0.00011545,2]
[347051820,1735485041905,-500.05304091,0.00011545,2]
[347051822,1735485041914,-501.17918297,0.00011545,2]
[347051823,1735485041923,-1060.89,0.00011545,2]
[347051825,1735485041933,-500.0,0.00011545,2]
[347051827,1735485041944,-1231.75,0.00011545,2]
[347051830,1735485041954,-4118.36,0.00011545,2]
[347051832,1735485041964,-500.0,0.00011545,2]
[347051833,1735485041973,-500.0,0.00011545,2]
[347051835,1735485041983,-500.0,0.00011545,2]
[347051838,1735485041993,-500.0,0.00011545,2]
[347051839,1735485042002,-1943.66,0.00011545,2]
[347051842,1735485042012,-500.97521223,0.00011545,2]
[347051844,1735485042022,-500.0,0.00011545,2]
[347051846,1735485042032,-1110.06,0.00011545,2]
[347051848,1735485042041,-500.0,0.00011545,2]
[347051850,1735485042052,-1059.19,0.00011545,2]
[347051852,1735485042062,-697.71,0.00011545,2]
[347051854,1735485042072,-500.0,0.00011545,2]
[347051856,1735485042081,-863.23,0.00011545,2]
[347051858,1735485042091,-960.82,0.00011545,2]
[347051860,1735485042100,-500.0,0.00011545,2]
[347051862,1735485042109,-500.0,0.00011545,2]
[347051864,1735485042119,-555.66,0.00011545,2]
[347051866,1735485042128,-501.72889271,0.00011545,2]
[347051868,1735485042137,-500.0,0.00011545,2]
[347051870,1735485042146,-502.66332416,0.00011545,2]
[347051872,1735485042155,-500.0,0.00011545,2]
[347051874,1735485042164,-486.29685761,0.00011545,2]
[347051876,1735485042173,-1103.3,0.00011545,2]
[347051877,1735485042183,-500.0,0.00011545,2]
[347051880,1735485042194,-500.0,0.00011545,2]
[347051882,1735485042203,-1307.55,0.00011545,2]
[347051884,1735485042213,-500.0,0.00011545,2]
[347051885,1735485042222,-500.0,0.00011545,2]
[347051887,1735485042231,-1018.53,0.00011545,2]
[347051889,1735485042241,-501.72746246,0.00011545,2]
[347051891,1735485042250,-1533.05,0.00011545,2]
[347051894,1735485042260,-500.0,0.00011545,2]
[347051896,1735485042270,-500.0,0.00011545,2]
[347051898,1735485042280,-500.0,0.00011545,2]
[347051899,1735485042289,-834.92,0.00011545,2]
[347051901,1735485042298,-500.0,0.00011545,2]
[347051903,1735485042307,-500.0,0.00011545,2]
[347051905,1735485042317,-500.0,0.00011545,2]
[347051907,1735485042326,-3743.79,0.00011545,2]
[347051909,1735485042336,-574.62,0.00011545,2]
[347051912,1735485042346,-500.0,0.00011545,2]
[347051914,1735485042355,-500.0,0.00011545,2]
[347051916,1735485042365,-506.71165512,0.00011545,2]
[347051918,1735485042375,-974.84,0.00011545,2]
[347051919,1735485042386,-979.5,0.00011545,2]
[347051922,1735485042397,-757.91,0.00011545,2]
[347051923,1735485042407,-2620.26,0.00011545,2]
[347051926,1735485042417,-2155.22,0.00011545,2]
[347051928,1735485042427,-500.0,0.00011545,2]
[347051929,1735485042436,-824.51,0.00011545,2]
[347051931,1735485042447,-13717.63,0.00011545,2]
[347051933,1735485042457,-500.0,0.00011545,2]
[347051935,1735485042467,-500.0,0.00011545,2]
[347051937,1735485042476,-500.0,0.00011545,2]
[347051939,1735485042485,-500.0,0.00011545,2]
[347051941,1735485042495,-1939.1,0.00011545,2]
[347051943,1735485042504,-500.0,0.00011545,2]
[347051945,1735485042514,-4614.82,0.00011545,2]
[347051947,1735485042523,-538.63,0.00011545,2]
[347051949,1735485042532,-500.0,0.00011545,2]
[347051951,1735485042541,-500.0,0.00011545,2]
[347051953,1735485042551,-629.59,0.00011545,2]
[347051955,1735485042561,-16021.18,0.00011545,2]
[347051957,1735485042570,-778.1,0.00011545,2]
[347051959,1735485042579,-500.0,0.00011545,2]
[347051961,1735485042590,-1060.33,0.00011545,2]
[347051963,1735485042600,-858.38,0.00011545,2]
[347051965,1735485042610,-832.9,0.00011545,2]
[347051967,1735485042620,-184.97032112,0.00011545,2]
[347051969,1735485042630,-615.83,0.00011545,2]
[347051971,1735485042639,-826.78,0.00011545,2]
[347051972,1735485042648,-500.0,0.00011545,2]
[347051973,1735485042657,-500.0,0.00011545,2]
[347051974,1735485042666,-614.97,0.00011545,2]
[347051975,1735485042675,-500.0,0.00011545,2]